bitfinex-derivatives/quotes_ETHF0:USTF0_20210703
["timestamp","ask_amount","ask_price","bid_price","bid_amount"]
[1625275078748,2.20527,2143.0,2142.9,4.754e-05]
[1625275079699,7.20527,2143.0,2141.6,15.3064]
[1625275079795,10.01817,2143.0,2141.6,15.3064]
[1625275080200,45.2245,2142.0,2141.6,15.3064]
[1625275080296,47.5237,2142.0,2141.6,15.3064]
[1625275080496,47.5237,2142.0,2140.1,55.2035]
[1625275080696,2.2992,2142.0,2140.1,55.2035]
[1625275081000,2.2992,2142.0,2140.2,1.0]
[1625275081099,2.2992,2142.0,2140.2,18.06724]
[1625275081350,2.20527,2141.4,2141.2,2.20527]
[1625275081451,2.20527,2141.4,2141.3,1.0]
[1625275082551,2.20527,2141.4,2141.0,2.20527]
[1625275082651,5.25477,2141.4,2141.0,2.20527]
[1625275082852,5.25477,2141.4,2139.7,15.2207]
[1625275083156,40.0787,2140.9,2139.7,15.2207]
[1625275083256,44.83527,2140.9,2140.8,2.20527]
[1625275083707,44.83527,2140.9,2140.8,3.20527]
[1625275083807,44.83527,2140.9,2140.8,2.20527]
[1625275084458,44.83527,2140.9,2140.6,2.20527]
[1625275084709,44.83527,2140.9,2140.7,1.0]
[1625275084807,4.75657,2140.9,2140.7,1.0]
[1625275084908,2.20527,2140.9,2140.7,1.0]
[1625275087364,2.20527,2141.3,2140.8,2.20527]
[1625275087463,2.20527,2141.3,2140.9,1.0]
[1625275087865,2.20527,2141.3,2141.0,16.892417]
[1625275087964,19.8638,2142.9,2141.1,1.0]
[1625275088516,19.8638,2142.9,2141.2,16.868988]
[1625275088616,15.1048,2142.9,2141.3,1.0]
[1625275089070,55.85109638,2143.3,2141.3,1.0]
[1625275089320,55.85109638,2143.3,2142.4,2.20527]
[1625275089420,55.85109638,2143.3,2142.5,1.0]
[1625275089522,54.4868,2143.3,2142.5,3.3158]
[1625275091374,2.20527,2142.6,2142.5,3.3158]
[1625275093388,2.20527,2142.7,2142.5,5.52107]
[1625275097362,4.41054,2142.7,2142.5,5.52107]
[1625275099369,4.41054,2142.7,2142.5,7.72634]
[1625275104832,4.41054,2142.7,2142.5,6.72634]
[1625275104931,4.41054,2142.7,2142.5,4.41054]
[1625275105133,4.41054,2142.7,2141.0,1.0]
[1625275105382,2.20527,2141.9,2141.8,2.20527]
[1625275105483,5.35597,2141.9,2141.8,2.20527]
[1625275106134,64.14267,2141.9,2141.8,2.20527]
[1625275106336,5.35597,2141.9,2141.8,2.20527]
[1625275107638,5.35597,2141.9,2141.8,3.20527]
[1625275109403,3.1507,2141.9,2141.8,3.20527]
[1625275110980,2.20527,2142.4,2141.8,3.20527]
[1625275111481,2.20527,2142.4,2142.1,2.20527]
[1625275111582,2.20527,2142.4,2142.1,3.20527]
[1625275113438,2.20527,2142.2,2142.1,3.20527]
[1625275130094,2.20527,2142.2,2142.1,2.20527]
[1625275130694,44.57667,2142.2,2142.1,2.20527]
[1625275130795,47.29267,2142.2,2142.1,2.20527]
[1625275130996,47.29267,2142.2,2141.9,1.0]
[1625275131249,4.92127,2142.2,2141.9,1.0]
[1625275133614,2.20527,2142.0,2141.9,1.0]
[1625275135067,3.29618517,2142.9,2141.9,1.0]
[1625275135068,1.37341876,2142.8,2141.9,1.0]
[1625275135167,1.37341876,2142.8,2141.9,4.3507]
[1625275135418,1.37341158,2142.9,2141.9,4.3507]
[1625275135566,2.20527,2142.5,2142.1,2.20527]
[1625275135669,2.20527,2142.5,2142.1,3.20527]
[1625275137571,2.20527,2142.5,2142.4,2.20527]
[1625275137671,2.20527,2142.5,2142.4,3.20527]
[1625275138724,2.20527,2142.5,2142.4,2.20527]
[1625275140876,2.20527,2142.5,2142.4,3.20527]
[1625275141076,2.20527,2142.5,2142.4,2.20527]
[1625275141179,2.20527,2142.5,2142.4,3.20527]
[1625275141277,2.20527,2142.5,2142.4,6.02577]
[1625275141878,2.20527,2142.5,2142.4,5.02577]
[1625275142631,2.20527,2142.5,2142.4,2.20527]
[1625275142730,43.80937,2142.5,2142.4,2.20527]
[1625275143029,2.20527,2142.5,2142.4,2.20527]
[1625275145536,2.20527,2142.5,2142.4,3.20527]
[1625275147640,2.20527,2142.5,2142.4,6.22897]
[1625275156732,2.20527,2142.7,2142.4,6.22897]
[1625275157682,2.20527,2142.7,2142.6,2.20527]
[1625275168428,2.20527,2142.7,2142.6,3.20527]
[1625275168929,1.37650232,2143.0,2142.6,3.20527]
[1625275169030,1.37654906,2142.9,2142.6,3.20527]
[1625275169782,1.37654906,2142.9,2142.8,2.20527]
[1625275174801,3.30536887,2142.9,2142.8,2.20527]
[1625275174903,1.92881981,2142.9,2142.8,2.20527]
[1625275175250,60.66281981,2142.9,2142.8,2.20527]
[1625275176706,61.49080557,2142.9,2142.8,2.20527]
[1625275177407,2.75680557,2142.9,2142.8,2.20527]
[1625275179460,1.93019193,2142.9,2142.8,2.20527]
[1625275181263,2.75741704,2143.0,2142.8,2.20527]
[1625275181365,2.75731032,2142.9,2142.8,2.20527]
[1625275181615,58.25531854,2142.9,2142.8,2.20527]
[1625275182879,1.93001854,2142.9,2142.8,2.20527]
[1625275187362,1.92975434,2143.0,2142.8,2.20527]
[1625275187812,1.37835774,2142.9,2142.8,2.20527]
[1625275188812,1.92964125,2142.9,2142.8,2.20527]
[1625275189561,1.92964125,2142.9,2142.8,3.20527]
[1625275189763,1.92962579,2143.0,2142.8,3.20527]
[1625275190216,1.37825959,2142.9,2142.8,3.20527]
[1625275190566,1.37816933,2143.0,2142.8,3.20527]
[1625275191116,1.37816933,2143.0,2142.8,2.20527]
[1625275191267,1.37816933,2143.0,2142.8,3.20527]
[1625275193570,1.37816933,2143.0,2142.8,2.20527]
[1625275193972,1.37798035,2142.9,2142.8,2.20527]
[1625275194081,4.91248035,2142.9,2142.8,2.20527]
[1625275194173,3.5345,2142.9,2142.8,2.20527]
[1625275194474,6.29068932,2142.9,2142.8,2.20527]
[1625275195577,3.5345,2142.9,2142.8,2.20527]
[1625275195676,2.75611851,2143.0,2142.8,2.20527]
[1625275196090,1.92923809,2142.9,2142.8,2.20527]
[1625275196539,1.37814966,2142.9,2142.8,3.20527]
[1625275197990,1.37809716,2143.0,2142.8,3.20527]
[1625275198092,1.37809716,2143.0,2142.8,6.21317]
[1625275198340,6.33987602,2143.1,2142.8,6.21317]
[1625275198341,1.37836665,2142.9,2142.8,6.21317]
[1625275198892,1.37835539,2143.0,2142.8,6.21317]
[1625275202453,3.58313542,2143.4,2142.8,6.21317]
[1625275203103,3.58313542,2143.4,2143.2,43.8617]
[1625275203205,3.58368588,2143.8,2143.3,1.0]
[1625275203309,3.58368588,2143.8,2143.3,4.7548]
[1625275203402,3.58368588,2143.8,2143.3,21.575766]
[1625275203903,5.51336289,2144.2,2143.7,40.906]
[1625275203904,3.58155626,2144.2,2143.7,40.906]
[1625275204003,3.58155626,2144.2,2143.8,1.0]
[1625275204153,3.58155626,2144.2,2143.8,4.3871]
[1625275204253,3.58155626,2144.2,2143.8,21.359615]
[1625275204505,3.58170177,2144.3,2143.8,21.359615]
[1625275205554,3.58170177,2144.3,2143.8,4.3871]
[1625275205807,3.57961885,2144.4,2143.8,4.3871]
[1625275206057,3.57961885,2144.4,2144.3,4.41054]
[1625275206658,55.82921385,2144.5,2144.3,4.41054]
[1625275206859,6.61101385,2144.5,2144.3,4.41054]
[1625275207361,3.57822844,2144.4,2144.3,4.41054]
[1625275209467,5.78210518,2144.5,2144.3,4.41054]
[1625275210367,5.78210518,2144.5,2144.3,7.70694]
[1625275211625,2.20527,2144.5,2144.3,7.70694]
[1625275211974,3.57556102,2144.6,2144.3,7.70694]
[1625275213733,3.57556102,2144.6,2144.3,65.08524]
[1625275214505,3.57442197,2144.7,2144.3,65.08524]
[1625275214599,3.57442197,2144.7,2144.3,7.70694]
[1625275216108,47.19012197,2144.7,2144.6,2.20527]
[1625275216257,3.57442197,2144.7,2144.6,2.20527]
[1625275216457,5.77772582,2144.8,2144.6,2.20527]
[1625275216807,48.69242582,2144.8,2144.6,2.20527]
[1625275217058,3.57245973,2144.7,2144.6,2.20527]
[1625275217515,5.77760031,2144.8,2144.6,2.20527]
[1625275217812,2.20527,2144.8,2144.6,2.20527]
[1625275218162,3.57230732,2144.8,2144.7,2.20527]
[1625275218665,3.57141506,2144.9,2144.7,2.20527]
[1625275219464,3.57151953,2144.8,2144.7,2.20527]
[1625275219567,54.08201953,2144.8,2144.7,2.20527]
[1625275220067,56.28728953,2144.8,2144.7,2.20527]
[1625275220926,5.77678953,2144.8,2144.7,2.20527]
[1625275221376,2.20527,2144.8,2144.7,2.20527]
[1625275221574,51.25867,2144.8,2144.7,2.20527]
[1625275221677,54.82962127,2144.8,2144.7,2.20527]
[1625275223425,51.25867,2144.8,2144.7,2.20527]
[1625275224228,54.82979936,2144.8,2144.7,2.20527]
[1625275225243,5.77639936,2144.8,2144.7,2.20527]
[1625275225648,5.77639936,2144.8,2143.5,1.0]
[1625275225847,43.6952,2144.7,2143.5,1.0]
[1625275225948,49.64942482,2144.7,2143.5,1.0]
[1625275226050,2.20527,2144.2,2144.1,2.20527]
[1625275226252,49.64942482,2144.7,2144.1,2.20527]
[1625275226452,46.0787,2144.7,2144.1,2.20527]
[1625275228152,2.20527,2144.4,2144.1,2.20527]
[1625275229809,5.83997,2144.4,2144.1,2.20527]
[1625275230161,56.6495,2144.2,2144.1,2.20527]
[1625275230862,2.20527,2144.3,2144.1,2.20527]
[1625275232013,47.26560424,2144.7,2144.1,2.20527]
[1625275232214,49.47087424,2144.7,2144.1,2.20527]
[1625275232418,45.90047,2144.7,2144.1,2.20527]
[1625275233269,49.47091292,2144.7,2144.1,2.20527]
[1625275233621,45.90047,2144.7,2144.1,2.20527]
[1625275233924,2.20527,2144.7,2144.1,2.20527]
[1625275234023,3.57026166,2144.8,2144.1,3.20527]
[1625275234173,3.57026166,2144.8,2144.7,4.41054]
[1625275234271,3.57026166,2144.8,2144.7,8.36094]
[1625275234480,4.39416819,2145.0,2144.7,8.36094]
[1625275234581,3.57013192,2145.1,2145.0,57.5201]
[1625275234679,3.57013192,2145.1,2145.0,58.5201]
[1625275235277,3.56979523,2145.5,2145.0,58.5201]
[1625275236078,2.20527,2145.7,2145.0,58.5201]
[1625275236229,2.20527,2145.7,2145.6,4.41054]
[1625275236326,2.20527,2145.7,2145.6,7.00144]
[1625275236586,2.20527,2145.7,2145.6,8.00144]
[1625275237031,2.20527,2145.7,2145.6,7.00144]
[1625275237579,2.20527,2145.7,2145.6,4.41054]
[1625275238278,2.20527,2145.7,2145.6,5.41054]
[1625275238630,2.20527,2146.2,2145.6,5.41054]
[1625275239131,2.20527,2146.2,2145.6,4.41054]
[1625275239484,2.20527,2146.2,2145.6,5.41054]
[1625275240180,2.20527,2146.2,2146.1,2.20527]
[1625275241284,2.20527,2146.2,2146.1,5.23157]
[1625275244369,2.20527,2146.2,2146.1,2.20527]
[1625275244666,41.35467,2146.2,2146.1,2.20527]
[1625275244768,2.20527,2146.2,2146.1,2.20527]
[1625275245619,58.07657,2146.2,2146.1,2.20527]
[1625275246671,2.20527,2146.2,2146.1,2.20527]
[1625275248174,42.39477,2146.2,2146.1,2.20527]
[1625275248982,45.11597,2146.2,2146.1,2.20527]
[1625275249328,45.11597,2146.2,2145.6,2.20527]
[1625275250027,45.11597,2146.2,2144.8,1.0]
[1625275250278,2.20527,2145.4,2145.3,2.20527]
[1625275250377,5.56437,2145.4,2145.3,2.20527]
[1625275250527,59.34817,2145.4,2145.3,2.20527]
[1625275250732,58.41227,2145.4,2145.3,2.20527]
[1625275251332,58.41227,2145.4,2145.1,2.20527]
[1625275251581,58.41227,2145.4,2142.7,3.52116993]
[1625275251682,63.41227,2145.4,2142.7,3.52116993]
[1625275251783,63.41227,2145.4,2142.3,3.52525584]
[1625275252081,63.41227,2145.4,2142.8,14.6169]
[1625275252184,47.6602,2144.3,2142.9,1.0]
[1625275252280,2.20527,2143.9,2143.8,2.20527]
[1625275252529,2.20527,2143.9,2143.8,3.20527]
[1625275253582,14.5477,2145.3,2143.8,3.20527]
[1625275253680,14.5477,2145.3,2143.8,5.89067]
[1625275253881,5.0,2145.8,2143.8,5.89067]
[1625275253979,51.0352,2145.3,2143.8,5.89067]
[1625275254129,54.4641,2145.3,2143.8,5.89067]
[1625275254332,2.20527,2143.9,2143.8,5.89067]
[1625275254732,2.20527,2143.9,2143.8,3.20527]
[1625275254831,51.0471,2144.5,2143.8,3.20527]
[1625275255285,3.5139,2144.8,2143.8,3.20527]
[1625275256086,54.4641,2145.3,2143.8,3.20527]
[1625275256286,2.20527,2144.4,2144.3,2.20527]
[1625275258142,2.20527,2144.4,2143.8,3.20527]
[1625275258344,2.20527,2144.0,2143.8,3.20527]
[1625275258996,57.9274,2144.6,2143.8,3.20527]
[1625275259446,2.8454,2144.8,2143.8,3.20527]
[1625275259549,54.4641,2145.3,2143.8,3.20527]
[1625275260310,2.20527,2144.4,2144.2,2.20527]
[1625275260410,2.20527,2144.4,2144.3,1.0]
[1625275260812,2.20527,2144.4,2144.2,2.20527]
[1625275260911,5.96757,2144.4,2144.2,2.20527]
[1625275261915,53.3196,2144.3,2144.2,2.20527]
[1625275262419,5.96757,2144.4,2144.2,2.20527]
[1625275263218,5.96757,2144.4,2144.2,3.20527]
[1625275263366,3.7623,2144.4,2144.2,3.20527]
[1625275263768,54.4641,2145.3,2144.2,3.20527]
[1625275264421,2.20527,2144.8,2144.5,2.20527]
[1625275264574,2.20527,2144.8,2144.5,3.20527]
[1625275266376,2.20527,2144.8,2144.5,5.41054]
[1625275267125,2.20527,2145.0,2144.5,5.41054]
[1625275268635,2.20527,2145.0,2144.5,1.0]
[1625275269535,2.20527,2145.0,2144.6,1.0]
[1625275269637,2.20527,2145.0,2144.5,1.0]
[1625275269736,5.28267,2145.0,2143.3,5.0]
[1625275270191,5.28267,2145.0,2143.4,16.856117]
[1625275270289,5.28267,2145.0,2143.4,21.856117]
[1625275270442,2.20527,2144.7,2144.5,2.20527]
[1625275270690,2.20527,2144.7,2144.6,1.0]
[1625275275762,46.70057,2144.7,2144.6,1.0]
[1625275276112,46.70057,2144.7,2144.5,2.20527]
[1625275276213,50.26137,2144.7,2144.5,2.20527]
[1625275276413,2.20527,2144.6,2144.5,2.20527]
[1625275276616,2.20527,2144.6,2142.8,19.6169]
[1625275277219,2.20527,2144.6,2142.9,1.0]
[1625275277318,2.20527,2144.6,2142.9,17.882611]
[1625275277669,2.20527,2144.6,2142.9,22.882611]
[1625275278069,2.20527,2144.6,2142.9,17.882611]
[1625275278321,2.20527,2144.6,2142.9,22.882611]
[1625275278423,2.20527,2144.1,2144.0,2.20527]
[1625275278521,1.20527,2144.1,2144.0,2.20527]
[1625275279427,1.0,2144.6,2144.0,2.20527]
[1625275279529,1.0,2144.6,2144.0,5.91917]
[1625275280436,1.0,2144.6,2144.5,2.20527]
[1625275282485,2.20527,2144.6,2144.5,2.20527]
[1625275285245,3.20527,2144.6,2144.5,2.20527]
[1625275287096,6.50057,2144.6,2144.5,2.20527]
[1625275288851,51.45627,2144.6,2144.5,2.20527]
[1625275290902,6.50057,2144.6,2144.5,2.20527]
[1625275291811,5.50057,2144.6,2144.5,2.20527]
[1625275291912,2.20527,2144.6,2144.5,2.20527]
[1625275293423,1.0,2144.8,2144.5,2.20527]
[1625275294627,1.0,2144.8,2144.5,4.41054]
[1625275294877,50.4871,2144.6,2144.5,4.41054]
[1625275294976,51.4871,2144.6,2144.5,4.41054]
[1625275295226,51.4871,2144.6,2144.5,2.20527]
[1625275295476,1.0,2144.6,2144.5,2.20527]
[1625275296642,3.20527,2144.6,2144.5,2.20527]
[1625275299796,2.20527,2144.6,2144.5,2.20527]
[1625275299897,3.20527,2144.6,2144.5,2.20527]
[1625275300249,2.20527,2144.6,2144.5,2.20527]
[1625275301902,3.20527,2144.6,2144.5,2.20527]
[1625275302254,2.20527,2144.6,2144.5,2.20527]
[1625275302354,3.20527,2144.6,2144.5,2.20527]
[1625275303507,2.20527,2144.6,2144.5,2.20527]
[1625275303857,3.20527,2144.6,2144.5,2.20527]
[1625275304609,1.0,2144.6,2144.5,2.20527]
[1625275304711,5.77594573,2145.5,2144.5,2.20527]
[1625275305264,2.20527,2145.5,2144.5,2.20527]
[1625275305363,2.20527,2145.5,2144.8,47.2044]
[1625275305617,2.20527,2145.5,2144.6,16.934719]
[1625275305718,2.20527,2145.5,2144.5,2.20527]
[1625275306281,2.20527,2145.5,2144.6,16.844074]
[1625275306781,2.20527,2145.5,2145.4,4.41054]
[1625275313352,3.20527,2145.5,2145.4,4.41054]
[1625275317657,6.94527,2145.5,2145.4,4.41054]
[1625275323302,6.94527,2145.5,2144.1,2.71904942]
[1625275323500,6.94527,2145.5,2143.9,2.72122135]
[1625275324099,6.94527,2145.5,2144.0,16.939321]
[1625275324201,47.371,2144.9,2144.0,16.939321]
[1625275324300,49.9303,2144.9,2144.0,16.939321]
[1625275324701,2.5593,2144.9,2144.0,16.939321]
[1625275324853,2.5593,2144.9,2144.8,2.20527]
[1625275326704,3.5593,2144.9,2144.8,2.20527]
[1625275326854,5.76457,2144.9,2144.8,2.20527]
[1625275328882,5.76457,2144.9,2143.7,14.9868]
[1625275330790,2.20527,2144.2,2144.1,2.20527]
[1625275331142,5.59687,2144.2,2144.1,2.20527]
[1625275331291,4.59687,2144.2,2144.1,2.20527]
[1625275332696,5.59687,2144.2,2144.1,2.20527]
[1625275332844,7.80214,2144.2,2144.1,2.20527]
[1625275333097,55.01904,2144.2,2144.1,2.20527]
[1625275334298,6.80214,2144.2,2144.1,2.20527]
[1625275334399,2.3916,2144.2,2144.1,2.20527]
[1625275334499,5.30871418,2144.9,2144.1,2.20527]
[1625275334500,2.74941418,2144.9,2144.1,2.20527]
[1625275334952,2.20527,2144.5,2144.1,2.20527]
[1625275335553,3.20527,2144.5,2144.1,2.20527]
[1625275336505,6.05607,2144.5,2144.1,2.20527]
[1625275336702,5.05607,2144.5,2144.1,2.20527]
[1625275336902,6.05607,2144.5,2144.1,2.20527]
[1625275337004,51.5504,2144.4,2144.1,2.20527]
[1625275337705,6.05607,2144.5,2144.1,2.20527]
[1625275338606,58.1791,2144.3,2144.1,2.20527]
[1625275338906,2.20527,2144.2,2144.1,2.20527]
[1625275340260,3.20527,2144.2,2144.1,2.20527]
[1625275342118,2.20527,2144.2,2144.1,2.20527]
[1625275342720,3.20527,2144.2,2144.1,2.20527]
[1625275343319,2.20527,2144.2,2144.1,2.20527]
[1625275343819,3.20527,2144.2,2144.1,2.20527]
[1625275347500,2.20527,2144.2,2144.1,2.20527]
[1625275347704,3.20527,2144.2,2144.1,2.20527]
[1625275352315,2.20527,2144.2,2144.1,2.20527]
[1625275355825,2.20527,2144.5,2144.1,2.20527]
[1625275355922,2.20527,2144.5,2144.1,5.25867]
[1625275356223,5.50014368,2145.0,2144.1,5.25867]
[1625275356574,1.0,2144.9,2144.1,5.25867]
[1625275357027,3.20527,2144.9,2144.7,2.20527]
[1625275357376,2.20527,2144.9,2144.7,2.20527]
[1625275357476,2.20527,2144.9,2144.7,5.93187]
[1625275359030,2.20527,2144.9,2144.7,8.13714]
[1625275359577,3.20527,2144.9,2144.7,8.13714]
[1625275359690,2.20527,2144.9,2144.7,8.13714]
[1625275360542,3.20527,2144.9,2144.7,8.13714]
[1625275361045,3.20527,2144.9,2144.7,5.93187]
[1625275361899,2.20527,2144.9,2144.7,5.93187]
[1625275362696,3.20527,2144.9,2144.7,5.93187]
[1625275363053,3.20527,2144.9,2144.7,8.13714]
[1625275363253,3.20527,2144.9,2144.8,41.2263]
[1625275363455,3.20527,2144.9,2144.7,8.13714]
[1625275365875,3.20527,2144.9,2144.7,5.93187]
[1625275367443,2.20527,2144.9,2144.7,5.93187]
[1625275368694,3.20527,2144.9,2144.7,5.93187]
[1625275369250,2.20527,2144.9,2144.7,5.93187]
[1625275371208,3.20527,2144.9,2144.7,5.93187]
[1625275371509,3.20527,2144.9,2144.7,3.7266]
[1625275371658,3.20527,2144.9,2144.6,2.20527]
[1625275372559,2.20527,2144.9,2144.6,2.20527]
[1625275373111,2.20527,2144.9,2144.7,2.20527]
[1625275373617,3.20527,2144.9,2144.7,2.20527]
[1625275374818,2.20527,2144.9,2144.7,2.20527]
[1625275375218,3.20527,2144.9,2144.7,2.20527]
[1625275376723,2.20527,2144.9,2144.7,2.20527]
[1625275377422,3.20527,2144.9,2144.7,2.20527]
[1625275378076,2.20527,2144.9,2144.7,2.20527]
[1625275378735,2.20527,2144.9,2144.7,5.73067]
[1625275379084,3.20527,2144.9,2144.7,5.73067]
[1625275385207,55.9158,2144.8,2144.7,5.73067]
[1625275385457,3.20527,2144.9,2144.7,5.73067]
[1625275392839,3.20527,2144.9,2144.7,2.20527]
[1625275395466,52.1027,2144.8,2144.7,2.20527]
[1625275395567,56.7746,2144.8,2144.7,2.20527]
[1625275396171,59.52656193,2144.8,2144.7,2.20527]
[1625275396570,56.7746,2144.8,2144.7,2.20527]
[1625275397067,4.6719,2144.8,2144.7,2.20527]
[1625275397772,50.6165,2144.8,2144.7,0.92317]
[1625275397869,50.6165,2144.8,2143.7,14.9868]
[1625275398222,1.92662749,2144.6,2143.7,14.9868]
[1625275398321,1.0,2144.5,2143.7,14.9868]
[1625275398721,45.2056,2144.0,2143.7,14.9868]
[1625275398821,1.0,2143.9,2143.3,1.90555454]
[1625275399327,2.20527,2143.8,2143.7,2.20527]
[1625275399426,3.20527,2143.8,2143.7,2.20527]
[1625275401329,5.41054,2143.8,2143.7,2.20527]
[1625275401781,7.3375459,2143.8,2143.7,2.20527]
[1625275402082,5.41054,2143.8,2143.7,2.20527]
[1625275404597,7.33616148,2143.8,2143.7,2.20527]
[1625275405597,5.41054,2143.8,2143.7,2.20527]
[1625275406103,7.33546399,2143.8,2143.7,2.20527]
[1625275407506,7.33546399,2143.8,2142.4,14.3886]
[1625275407808,5.41054,2143.8,2142.4,14.3886]
[1625275408057,5.41054,2143.8,2142.6,52.5856]
[1625275409359,2.20527,2143.4,2143.2,2.20527]
[1625275409459,5.97197,2143.4,2143.2,2.20527]
[1625275409664,1.0,2143.3,2143.2,2.20527]
[1625275411218,5.97197,2143.4,2143.2,2.20527]
[1625275411416,8.17724,2143.4,2143.2,2.20527]
[1625275411717,8.17724,2143.4,2143.0,53.62977]
[1625275411818,8.17724,2143.4,2143.0,2.20527]
[1625275412670,9.17724,2143.4,2143.0,2.20527]
[1625275413421,2.20527,2143.1,2143.0,4.41054]
[1625275415275,3.20527,2143.1,2143.0,4.41054]
[1625275415422,2.20527,2143.1,2143.0,4.41054]
[1625275415521,3.20527,2143.1,2143.0,4.41054]
[1625275415623,2.20527,2143.1,2143.0,4.41054]
[1625275416576,3.20527,2143.1,2143.0,4.41054]
[1625275416774,2.20527,2143.1,2143.0,4.41054]
[1625275418127,3.20527,2143.1,2143.0,4.41054]
[1625275419582,2.20527,2143.1,2143.0,4.41054]
[1625275422356,3.20527,2143.1,2143.0,4.41054]
[1625275422556,3.20527,2143.1,2143.0,2.20527]
[1625275423304,2.20527,2143.1,2143.0,2.20527]
[1625275423404,3.20527,2143.1,2143.0,2.20527]
[1625275425761,3.20527,2143.1,2142.6,2.20527]
[1625275427718,2.20527,2142.7,2142.6,2.20527]
[1625275427819,2.20527,2142.7,2142.6,58.83287]
[1625275428520,2.20527,2142.7,2142.6,2.20527]
[1625275429672,2.20527,2142.7,2142.6,57.67187]
[1625275432477,2.20527,2142.7,2142.6,2.20527]
[1625275435438,2.20527,2142.7,2142.6,42.14557]
[1625275437356,2.20527,2143.1,2142.6,42.14557]
[1625275437708,2.20527,2143.1,2143.0,2.20527]
[1625275438112,2.20527,2143.1,2143.0,19.26967]
[1625275438365,1.91944256,2144.3,2143.0,19.26967]
[1625275438469,1.91944256,2144.3,2143.0,72.26677]
[1625275438669,1.91944256,2144.3,2143.0,77.26677]
[1625275438770,1.91909925,2144.7,2143.0,77.26677]
[1625275439071,1.91909925,2144.7,2144.1,52.9922]
[1625275439170,1.91909925,2144.7,2144.1,56.5167]
[1625275439321,1.91890616,2145.0,2144.1,56.5167]
[1625275439521,1.91857926,2145.1,2144.1,56.5167]
[1625275439621,2.91857926,2145.1,2144.1,56.5167]
[1625275439720,2.20527,2144.2,2144.1,56.5167]
[1625275439826,2.20527,2144.2,2144.1,3.5245]
[1625275439978,5.51097,2144.2,2144.1,3.5245]
[1625275440074,5.51097,2144.2,2143.6,2.20527]
[1625275440223,5.51097,2144.2,2143.1,15.294]
[1625275441176,5.51097,2144.2,2143.1,60.6797]
[1625275441276,45.5266,2144.1,2143.1,15.294]
[1625275441378,1.0,2144.0,2143.1,15.294]
[1625275441731,2.20527,2143.2,2143.1,2.20527]
[1625275441830,6.83477,2143.2,2143.1,2.20527]
[1625275442331,6.83477,2143.2,2142.9,2.20527]
[1625275443234,42.9886,2143.1,2142.9,2.20527]
[1625275443339,1.0,2143.0,2142.9,2.20527]
[1625275443834,3.20527,2143.0,2142.9,2.20527]
[1625275449762,48.11787,2143.0,2142.9,2.20527]
[1625275451718,3.20527,2143.0,2142.9,2.20527]
[1625275456485,2.20527,2143.0,2142.9,2.20527]
[1625275456938,3.20527,2143.0,2142.9,2.20527]
[1625275457137,2.20527,2143.0,2142.9,2.20527]
[1625275457641,57.38827,2143.0,2142.9,2.20527]
[1625275458243,58.38827,2143.0,2142.9,2.20527]
[1625275458442,3.20527,2143.0,2142.9,2.20527]
[1625275459952,50.00097,2143.0,2142.9,2.20527]
[1625275460503,3.20527,2143.0,2142.9,2.20527]
[1625275460705,2.20527,2143.0,2142.9,2.20527]
[1625275461017,43.17897,2143.0,2142.9,2.20527]
[1625275461768,44.17897,2143.0,2142.9,2.20527]
[1625275463269,3.20527,2143.0,2142.9,2.20527]
[1625275463569,2.20527,2143.0,2142.9,2.20527]
[1625275463820,3.20527,2143.0,2142.9,2.20527]
[1625275465123,46.60707,2143.0,2142.9,2.20527]
[1625275465272,3.20527,2143.0,2142.9,2.20527]
[1625275469629,60.78517,2143.0,2142.9,2.20527]
[1625275470431,3.20527,2143.0,2142.9,2.20527]
[1625275471834,61.07797,2143.0,2142.9,2.20527]
[1625275473692,3.20527,2143.0,2142.9,2.20527]
[1625275474392,2.20527,2143.0,2142.9,2.20527]
[1625275474743,3.20527,2143.0,2142.9,2.20527]
[1625275475445,2.20527,2143.0,2142.9,2.20527]
[1625275475545,1.0,2143.1,2142.9,2.20527]
[1625275475698,1.37199238,2143.7,2142.9,2.20527]
[1625275475796,1.37199238,2143.7,2142.9,5.06817]
[1625275476096,1.37199238,2143.7,2143.6,4.41054]
[1625275476399,3.57824961,2144.3,2143.6,4.41054]
[1625275476498,3.57824961,2144.3,2143.6,6.91834]
[1625275477058,2.20527,2144.3,2143.6,6.91834]
[1625275477247,3.57809742,2144.5,2143.6,6.91834]
[1625275477448,2.20527,2144.5,2143.6,6.91834]
[1625275477749,1.0,2144.4,2143.7,16.811576]
[1625275478148,1.0,2144.4,2144.3,4.41054]
[1625275479100,2.20527,2144.5,2144.3,4.41054]
[1625275479199,1.0,2144.4,2144.3,4.41054]
[1625275479401,2.20527,2144.5,2144.3,4.41054]
[1625275479751,3.57911467,2144.5,2144.3,4.41054]
[1625275480251,1.0,2144.4,2144.3,4.41054]
[1625275480354,3.57911467,2144.5,2144.3,4.41054]
[1625275480654,2.20527,2144.5,2144.3,4.41054]
[1625275481806,3.20527,2144.5,2144.3,4.41054]
[1625275482152,5.41054,2144.5,2144.3,4.41054]
[1625275482256,6.78493568,2144.5,2144.3,4.41054]
[1625275483356,4.41054,2144.5,2144.3,4.41054]
[1625275483971,5.78561981,2144.5,2144.3,4.41054]
[1625275484672,1.0,2144.4,2144.3,4.41054]
[1625275484822,5.78561981,2144.5,2144.3,4.41054]
[1625275485073,1.37509531,2144.4,2144.3,4.41054]
[1625275485324,5.78548178,2144.5,2144.3,4.41054]
[1625275486237,1.37548644,2144.4,2144.3,4.41054]
[1625275486337,5.78601838,2144.5,2144.3,4.41054]